[Event "Gaprindashvili Cup Women III Stage 2020"]
[Site "Online"]
[Date "2020.11.12"]
[Round "1.3"]
[White "Khurtsilava, Inga"]
[Black "Tsatsalashvili, Keti"]
[Result "0-1"]
[ECO "D05"]
[WhiteElo "2260"]
[BlackElo "2331"]
[Annotator "broadcasts"]
[PlyCount "74"]
[EventDate "2020.11.04"]
[EventType "k.o."]
[TimeControl "1500+5"]

1. d4 {[%emt 0:20:02]} Nf6 {[%emt 0:20:05]} 2. Nf3 {[%emt 0:00:04]} e6 {[%emt 0:00:05]} 3. e3 {[%emt 0:00:04]} d5 {[%emt 0:00:04]} 4. Bd3 {[%emt 0:00:04]} c5 {[%emt 0:00:03]} 5. b3 {[%emt 0:00:04]} b6 {[%emt 0:00:04]} 6. O-O {[%emt 0:00:05]} Bb7 {[%emt 0:00:08]} 7. Bb2 {[%emt 0:00:04]} Nc6 {[%emt 0:00:09]} 8. Nbd2 {[%emt 0:00:05]} Be7 {[%emt 0:00:06]} 9. a3 {[%emt 0:00:06]} O-O {[%emt 0:00:05]} 10. Ne5 {[%emt 0:00:04]} Ne8 {[%emt 0:00:05]} 11. Qe2 {[%emt 0:00:09]} a5 {[%emt 0:00:21]} 12. Nxc6 {[%emt 0:00:18]} Bxc6 {[%emt 0:00:05]} 13. dxc5 {[%emt 0:00:04]} bxc5 {[%emt 0:00:44]} 14. e4 {[%emt 0:00:05]} Rb8 {[%emt 0:01:08]} 15. e5 {[%emt 0:00:19]} c4 {[%emt 0:00:05]} 16. Nxc4 {[%emt 0:00:56]} dxc4 {[%emt 0:00:07]} 17. Bxc4 {[%emt 0:00:04]} Qc7 {[%emt 0:00:23]} 18. a4 {[%emt 0:00:19]} Qb7 {[%emt 0:00:06]} 19. Qg4 {[%emt 0:00:08]} Bc5 {[%emt 0:00:14]} 20. Bd3 {[%emt 0:00:07]} g6 {[%emt 0:00:05]} 21. h4 {[%emt 0:00:07]} Ng7 {[%emt 0:00:05]} 22. Rae1 {[%emt 0:00:14]} Rfd8 {[%emt 0:00:06]} 23. Kh2 {[%emt 0:00:10]} Rd7 {[%emt 0:00:09]} 24. Bc1 {[%emt 0:00:09]} Bd4 {[%emt 0:00:35]} 25. Bh6 {[%emt 0:00:11]} Qc7 {[%emt 0:00:20]} 26. f4 {[%emt 0:00:10]} Nf5 {[%emt 0:00:07]} 27. Bg5 {[%emt 0:01:13]} h5 {[%emt 0:00:21]} 28. Qh3 {[%emt 0:00:29]} Bc5 {[%emt 0:00:47]} 29. Bf6 {[%emt 0:00:11]} Be7 {[%emt 0:00:08]} 30. g4 {[%emt 0:00:31]} hxg4 {[%emt 0:00:11]} 31. Qxg4 {[%emt 0:00:05]} Qd8 {[%emt 0:00:14]} 32. Qg5 {[%emt 0:00:10]} Bxf6 {[%emt 0:00:09]} 33. exf6 {[%emt 0:00:05]} Qf8 {[%emt 0:00:04]} 34. Bxf5 {[%emt 0:00:42]} exf5 {[%emt 0:00:05]} 35. Rf2 {[%emt 0:00:12]} Rbd8 {[%emt 0:00:07]} 36. h5 {[%emt 0:00:06]} Rd2 {[%emt 0:00:13]} 37. Ref1 {[%emt 0:00:05]} Qc5 {[%emt 0:00:06]} 0-1

[Event "Gaprindashvili Cup Women III Stage 2020"]
[Site "Online"]
[Date "2020.11.12"]
[Round "1.4"]
[White "Tsatsalashvili, Keti"]
[Black "Khurtsilava, Inga"]
[Result "0-1"]
[ECO "A92"]
[WhiteElo "2331"]
[BlackElo "2260"]
[Annotator "broadcasts"]
[PlyCount "98"]
[EventDate "2020.11.04"]
[EventType "k.o."]
[TimeControl "1500+5"]

1. d4 {[%emt 0:20:02]} d5 {[%emt 0:20:04]} 2. Nf3 {[%emt 0:00:05]} Nf6 {[%emt 0:00:05]} 3. c4 {[%emt 0:00:05]} e6 {[%emt 0:00:04]} 4. g3 {[%emt 0:00:16]} c6 {[%emt 0:00:04]} 5. Bg2 {[%emt 0:00:08]} Be7 {[%emt 0:00:07]} 6. O-O {[%emt 0:00:06]} O-O {[%emt 0:00:05]} 7. Qc2 {[%emt 0:00:08]} Ne4 {[%emt 0:00:07]} 8. Nbd2 {[%emt 0:00:13]} f5 {[%emt 0:00:04]} 9. Ne5 {[%emt 0:00:11]} Nd7 {[%emt 0:00:05]} 10. Nxd7 {[%emt 0:00:17]} Bxd7 {[%emt 0:00:04]} 11. f3 {[%emt 0:00:20]} Nxd2 {[%emt 0:00:29]} 12. Bxd2 {[%emt 0:00:04]} Be8 {[%emt 0:00:04]} 13. Bf4 {[%emt 0:00:21]} Bg6 {[%emt 0:00:05]} 14. cxd5 {[%emt 0:00:15]} Qxd5 {[%emt 0:00:27]} 15. Rfd1 {[%emt 0:00:08]} h6 {[%emt 0:00:17]} 16. Qb3 {[%emt 0:00:35]} Qd7 {[%emt 0:00:06]} 17. Be5 {[%emt 0:00:08]} Kh7 {[%emt 0:00:07]} 18. Rac1 {[%emt 0:00:06]} Bh5 {[%emt 0:00:10]} 19. Rd2 {[%emt 0:00:17]} Bg5 {[%emt 0:00:07]} 20. f4 {[%emt 0:00:06]} Bd8 {[%emt 0:00:11]} 21. e3 {[%emt 0:00:32]} Bb6 {[%emt 0:00:07]} 22. Qc3 {[%emt 0:00:13]} Rg8 {[%emt 0:00:11]} 23. a3 {[%emt 0:00:23]} g5 {[%emt 0:00:09]} 24. Qc2 {[%emt 0:00:17]} Bg6 {[%emt 0:00:22]} 25. Bf1 {[%emt 0:00:12]} Qe7 {[%emt 0:00:14]} 26. b4 {[%emt 0:00:07]} a6 {[%emt 0:00:09]} 27. Qb3 {[%emt 0:00:06]} gxf4 {[%emt 0:00:23]} 28. Bxf4 {[%emt 0:00:18]} Rad8 {[%emt 0:00:13]} 29. Bc4 {[%emt 0:00:09]} Bf7 {[%emt 0:00:09]} 30. Qd1 {[%emt 0:00:23]} h5 {[%emt 0:00:06]} 31. Qf1 {[%emt 0:00:05]} Bc7 {[%emt 0:00:16]} 32. Bxc7 {[%emt 0:00:20]} Qxc7 {[%emt 0:00:05]} 33. Qf4 {[%emt 0:00:04]} Qe7 {[%emt 0:00:06]} 34. Rg2 {[%emt 0:00:13]} Rg4 {[%emt 0:00:05]} 35. Qf2 {[%emt 0:00:06]} Rdg8 {[%emt 0:00:15]} 36. Be2 {[%emt 0:00:04]} R4g5 {[%emt 0:00:12]} 37. Bf3 {[%emt 0:00:05]} e5 {[%emt 0:00:13]} 38. dxe5 {[%emt 0:00:09]} Qxe5 {[%emt 0:00:06]} 39. Re1 {[%emt 0:00:04]} h4 {[%emt 0:00:17]} 40. e4 {[%emt 0:00:22]} h3 {[%emt 0:00:23]} 41. exf5 {[%emt 0:00:07]} Qc7 {[%emt 0:00:12]} 42. Be4 {[%emt 0:00:07]} hxg2 {[%emt 0:00:07]} 43. Qe3 {[%emt 0:00:12]} Qe5 {[%emt 0:00:14]} 44. Qd3 {[%emt 0:00:06]} Qf6 {[%emt 0:00:07]} 45. Kxg2 {[%emt 0:00:06]} Rd8 {[%emt 0:00:07]} 46. Qe3 {[%emt 0:00:05]} Kg7 {[%emt 0:00:09]} 47. Re2 {[%emt 0:00:03]} Rg4 {[%emt 0:00:05]} 48. Rf2 {[%emt 0:00:03]} Rxe4 {[%emt 0:00:08]} 49. Qxe4 {[%emt 0:00:04]} Bd5 {[%emt 0:00:05]} 0-1

[Event "Gaprindashvili Cup Women III Stage 2020"]
[Site "Online"]
[Date "2020.11.12"]
[Round "1.4"]
[White "Vakhania, Alexandra"]
[Black "Melia, Salome"]
[Result "0-1"]
[ECO "B13"]
[WhiteElo "2134"]
[BlackElo "2371"]
[Annotator "broadcasts"]
[PlyCount "76"]
[EventDate "2020.11.04"]
[EventType "k.o."]
[TimeControl "1500+5"]

1. f4 {[%emt 0:00:00]} c5 {[%emt 0:00:03]} 2. Nf3 {[%emt 0:00:04]} Nc6 {[%emt 0:00:04]} 3. e3 {[%emt 0:00:19]} g6 {[%emt 0:00:30]} 4. d4 {[%emt 0:00:04]} cxd4 {[%emt 0:00:47]} 5. exd4 {[%emt 0:00:07]} d5 {[%emt 0:00:04]} 6. c3 {[%emt 0:00:07]} Bg7 {[%emt 0:00:31]} 7. Bd3 {[%emt 0:00:05]} Nh6 {[%emt 0:00:55]} 8. O-O {[%emt 0:00:04]} O-O {[%emt 0:00:04]} 9. Be3 {[%emt 0:00:09]} Bf5 {[%emt 0:00:18]} 10. Bf2 {[%emt 0:00:59]} Qb6 {[%emt 0:01:39]} 11. Bxf5 {[%emt 0:00:04]} Nxf5 {[%emt 0:00:01]} 12. Qb3 {[%emt 0:00:14]} Qxb3 {[%emt 0:02:24]} 13. axb3 {[%emt 0:00:05]} Nd6 {[%emt 0:00:04]} 14. Nbd2 {[%emt 0:00:09]} f5 {[%emt 0:00:18]} 15. Ne5 {[%emt 0:01:01]} Rfc8 {[%emt 0:00:22]} 16. Bh4 {[%emt 0:00:43]} Bf8 {[%emt 0:00:29]} 17. b4 {[%emt 0:00:19]} Nxe5 {[%emt 0:02:01]} 18. fxe5 {[%emt 0:00:07]} Ne4 {[%emt 0:00:36]} 19. Nxe4 {[%emt 0:00:15]} fxe4 {[%emt 0:00:07]} 20. Ra5 {[%emt 0:00:24]} e6 {[%emt 0:00:09]} 21. Rfa1 {[%emt 0:00:05]} a6 {[%emt 0:01:51]} 22. b5 {[%emt 0:00:05]} Rab8 {[%emt 0:00:58]} 23. R1a2 {[%emt 0:01:23]} axb5 {[%emt 0:01:52]} 24. Rxb5 {[%emt 0:00:05]} Kf7 {[%emt 0:00:38]} 25. Ra1 {[%emt 0:01:21]} Be7 {[%emt 0:00:21]} 26. Rf1+ {[%emt 0:00:34]} Ke8 {[%emt 0:00:02]} 27. Bf6 {[%emt 0:00:11]} Kd7 {[%emt 0:00:45]} 28. Bg7 {[%emt 0:01:05]} Kc6 {[%emt 0:02:30]} 29. Ra5 {[%emt 0:01:03]} Ra8 {[%emt 0:00:03]} 30. Rxa8 {[%emt 0:00:36]} Rxa8 {[%emt 0:00:02]} 31. Rf7 {[%emt 0:00:02]} Bg5 {[%emt 0:00:25]} 32. Bf6 {[%emt 0:00:46]} Bc1 {[%emt 0:03:37]} 33. Re7 {[%emt 0:00:24]} Bxb2 {[%emt 0:00:02]} 34. Rxe6+ {[%emt 0:00:03]} Kb5 {[%emt 0:00:34]} 35. Re7 {[%emt 0:03:07]} Bxc3 {[%emt 0:00:07]} 36. e6 {[%emt 0:00:16]} e3 {[%emt 0:00:51]} 37. Kf1 {[%emt 0:03:03]} Ra2 {[%emt 0:00:18]} 38. Rxb7+ {[%emt 0:01:53]} Kc6 {[%emt 0:00:03]} 0-1

[Event "Gaprindashvili Cup Women III Stage 2020"]
[Site "Online"]
[Date "2020.11.12"]
[Round "1.5"]
[White "Khukhashvili, Sopiko"]
[Black "Tereladze, Sopiko"]
[Result "1-0"]
[ECO "C22"]
[WhiteElo "2334"]
[BlackElo "2141"]
[Annotator "broadcasts"]
[PlyCount "61"]
[EventDate "2020.11.04"]
[EventType "k.o."]
[TimeControl "1500+5"]

1. e4 {[%emt 0:00:00]} e5 {[%emt 0:00:04]} 2. d4 {[%emt 0:00:05]} exd4 {[%emt 0:00:08]} 3. Qxd4 {[%emt 0:00:04]} Nc6 {[%emt 0:00:03]} 4. Qe3 {[%emt 0:00:03]} Nf6 {[%emt 0:00:10]} 5. Nc3 {[%emt 0:00:03]} Bb4 {[%emt 0:04:09]} 6. Bd2 {[%emt 0:00:05]} O-O {[%emt 0:00:17]} 7. O-O-O {[%emt 0:00:04]} Re8 {[%emt 0:00:35]} 8. Qg3 {[%emt 0:00:04]} d6 {[%emt 0:04:36]} 9. f3 {[%emt 0:01:07]} Be6 {[%emt 0:03:58]} 10. h4 {[%emt 0:00:31]} Nh5 {[%emt 0:05:07]} 11. Qe1 {[%emt 0:00:53]} f5 {[%emt 0:00:11]} 12. Nh3 {[%emt 0:02:03]} fxe4 {[%emt 0:02:42]} 13. Ng5 {[%emt 0:00:35]} e3 {[%emt 0:00:48]} 14. Qxe3 {[%emt 0:00:18]} Bxa2 {[%emt 0:01:11]} 15. Qd3 {[%emt 0:00:11]} Nf6 {[%emt 0:01:10]} 16. Nxa2 {[%emt 0:00:11]} Bxd2+ {[%emt 0:00:31]} 17. Qxd2 {[%emt 0:00:08]} Ne5 {[%emt 0:00:24]} 18. Nc3 {[%emt 0:00:20]} h6 {[%emt 0:00:03]} 19. Nge4 {[%emt 0:00:05]} a6 {[%emt 0:00:05]} 20. Nxf6+ {[%emt 0:00:16]} Qxf6 {[%emt 0:00:03]} 21. Nd5 {[%emt 0:00:10]} Qf7 {[%emt 0:00:02]} 22. h5 {[%emt 0:00:10]} c6 {[%emt 0:00:03]} 23. Nf4 {[%emt 0:00:44]} Rad8 {[%emt 0:00:09]} 24. Bd3 {[%emt 0:00:15]} Qa2 {[%emt 0:00:03]} 25. Qc3 {[%emt 0:00:38]} b5 {[%emt 0:00:12]} 26. b3 {[%emt 0:01:29]} Qa3+ {[%emt 0:00:12]} 27. Kb1 {[%emt 0:00:11]} c5 {[%emt 0:00:03]} 28. Bg6 {[%emt 0:00:39]} Re7 {[%emt 0:00:09]} 29. Rhe1 {[%emt 0:00:07]} c4 {[%emt 0:00:04]} 30. Rxe5 {[%emt 0:01:36]} cxb3 {[%emt 0:00:04]} 31. Rxe7 {[%emt 0:00:08]} 1-0

[Event "Gaprindashvili Cup Women III Stage 2020"]
[Site "Online"]
[Date "2020.11.12"]
[Round "1.5"]
[White "Khurtsilava, Inga"]
[Black "Tsatsalashvili, Keti"]
[Result "0-1"]
[ECO "D05"]
[WhiteElo "2260"]
[BlackElo "2331"]
[Annotator "broadcasts"]
[PlyCount "82"]
[EventDate "2020.11.04"]
[EventType "k.o."]
[TimeControl "1500+5"]

1. d4 {[%emt 0:22:03]} Nf6 {[%emt 0:22:06]} 2. Nf3 {[%emt 0:00:05]} e6 {[%emt 0:00:05]} 3. e3 {[%emt 0:00:06]} d5 {[%emt 0:00:04]} 4. Bd3 {[%emt 0:00:05]} c5 {[%emt 0:00:05]} 5. b3 {[%emt 0:00:06]} b6 {[%emt 0:00:05]} 6. O-O {[%emt 0:00:05]} Bb7 {[%emt 0:00:06]} 7. Bb2 {[%emt 0:00:06]} Be7 {[%emt 0:00:06]} 8. Ne5 {[%emt 0:00:06]} O-O {[%emt 0:00:05]} 9. Nd2 {[%emt 0:00:06]} Nc6 {[%emt 0:00:07]} 10. a3 {[%emt 0:00:06]} a5 {[%emt 0:00:08]} 11. f4 {[%emt 0:00:10]} Ne8 {[%emt 0:00:28]} 12. f5 {[%emt 0:00:11]} Nxe5 {[%emt 0:00:15]} 13. dxe5 {[%emt 0:00:06]} exf5 {[%emt 0:00:05]} 14. Bxf5 {[%emt 0:00:10]} g6 {[%emt 0:00:08]} 15. Bh3 {[%emt 0:00:07]} Ng7 {[%emt 0:00:09]} 16. c4 {[%emt 0:00:18]} Bg5 {[%emt 0:00:21]} 17. Qe2 {[%emt 0:00:06]} Qe7 {[%emt 0:00:21]} 18. Nf3 {[%emt 0:00:07]} Bh6 {[%emt 0:00:05]} 19. Bc3 {[%emt 0:00:32]} a4 {[%emt 0:00:07]} 20. b4 {[%emt 0:00:08]} dxc4 {[%emt 0:00:05]} 21. Qxc4 {[%emt 0:00:09]} Bxe3+ {[%emt 0:00:15]} 22. Kh1 {[%emt 0:00:05]} Ne6 {[%emt 0:00:24]} 23. Rae1 {[%emt 0:00:11]} Bh6 {[%emt 0:00:09]} 24. b5 {[%emt 0:00:17]} Rfd8 {[%emt 0:00:11]} 25. Rd1 {[%emt 0:00:11]} Nf4 {[%emt 0:00:09]} 26. Bg4 {[%emt 0:00:13]} Bd5 {[%emt 0:00:11]} 27. Rxd5 {[%emt 0:00:14]} Nxd5 {[%emt 0:00:07]} 28. Bb2 {[%emt 0:00:06]} Ne3 {[%emt 0:00:06]} 29. Qc3 {[%emt 0:00:07]} Nxf1 {[%emt 0:00:10]} 30. e6 {[%emt 0:00:08]} f6 {[%emt 0:00:04]} 31. Ne5 {[%emt 0:00:26]} Bd2 {[%emt 0:00:16]} 32. Qf3 {[%emt 0:00:09]} fxe5 {[%emt 0:00:10]} 33. Qxf1 {[%emt 0:00:07]} Be3 {[%emt 0:00:13]} 34. Qe2 {[%emt 0:00:06]} Bd4 {[%emt 0:00:05]} 35. Bc1 {[%emt 0:00:06]} Qf6 {[%emt 0:00:08]} 36. Bf3 {[%emt 0:00:09]} Rab8 {[%emt 0:00:05]} 37. Qc4 {[%emt 0:00:08]} Kh8 {[%emt 0:00:05]} 38. h3 {[%emt 0:00:08]} Re8 {[%emt 0:00:09]} 39. Qd5 {[%emt 0:00:21]} Qxe6 {[%emt 0:00:06]} 40. Qe4 {[%emt 0:00:06]} Qf6 {[%emt 0:00:05]} 41. Bh6 {[%emt 0:00:07]} Rbd8 {[%emt 0:00:05]} 0-1

[Event "Gaprindashvili Cup Women III Stage 2020"]
[Site "Online"]
[Date "2020.11.12"]
[Round "1.6"]
[White "Tsatsalashvili, Keti"]
[Black "Khurtsilava, Inga"]
[Result "1-0"]
[ECO "D30"]
[WhiteElo "2331"]
[BlackElo "2260"]
[Annotator "broadcasts"]
[PlyCount "69"]
[EventDate "2020.11.04"]
[EventType "k.o."]
[TimeControl "1500+5"]

1. Nf3 {[%emt 0:22:03]} d5 {[%emt 0:22:07]} 2. d4 {[%emt 0:00:08]} c6 {[%emt 0:00:05]} 3. c4 {[%emt 0:00:10]} Nf6 {[%emt 0:00:06]} 4. Nbd2 {[%emt 0:00:04]} e6 {[%emt 0:00:13]} 5. e3 {[%emt 0:00:06]} Ne4 {[%emt 0:00:08]} 6. Bd3 {[%emt 0:00:16]} f5 {[%emt 0:00:06]} 7. O-O {[%emt 0:00:15]} Bd6 {[%emt 0:00:07]} 8. Ne5 {[%emt 0:00:09]} Bxe5 {[%emt 0:00:09]} 9. dxe5 {[%emt 0:00:06]} Nd7 {[%emt 0:00:08]} 10. f4 {[%emt 0:00:10]} Ndc5 {[%emt 0:00:08]} 11. Be2 {[%emt 0:00:05]} a5 {[%emt 0:00:09]} 12. cxd5 {[%emt 0:00:07]} cxd5 {[%emt 0:00:13]} 13. Nf3 {[%emt 0:00:19]} O-O {[%emt 0:00:09]} 14. Nd4 {[%emt 0:00:05]} Bd7 {[%emt 0:00:10]} 15. b3 {[%emt 0:00:16]} Rf7 {[%emt 0:00:16]} 16. Bf3 {[%emt 0:00:17]} g5 {[%emt 0:00:10]} 17. Ba3 {[%emt 0:00:10]} g4 {[%emt 0:00:15]} 18. Be2 {[%emt 0:00:11]} Rg7 {[%emt 0:00:16]} 19. Bxc5 {[%emt 0:00:08]} Nxc5 {[%emt 0:00:07]} 20. Rc1 {[%emt 0:00:05]} b6 {[%emt 0:00:09]} 21. Bb5 {[%emt 0:00:19]} Bxb5 {[%emt 0:00:10]} 22. Nxb5 {[%emt 0:00:05]} Qh4 {[%emt 0:00:13]} 23. Nd6 {[%emt 0:00:19]} Rg6 {[%emt 0:00:17]} 24. Qe2 {[%emt 0:00:07]} Rf8 {[%emt 0:00:22]} 25. Rc2 {[%emt 0:00:05]} Rh6 {[%emt 0:00:16]} 26. g3 {[%emt 0:00:09]} Qe7 {[%emt 0:00:06]} 27. Rfc1 {[%emt 0:00:07]} Rh3 {[%emt 0:00:07]} 28. Qb5 {[%emt 0:00:17]} Qa7 {[%emt 0:00:23]} 29. a3 {[%emt 0:00:21]} h5 {[%emt 0:00:09]} 30. b4 {[%emt 0:00:05]} axb4 {[%emt 0:00:07]} 31. axb4 {[%emt 0:00:04]} Qa3 {[%emt 0:00:09]} 32. Rc3 {[%emt 0:00:19]} Qb2 {[%emt 0:00:05]} 33. R1c2 {[%emt 0:00:09]} Qb1+ {[%emt 0:00:05]} 34. Rc1 {[%emt 0:00:05]} Qb2 {[%emt 0:00:08]} 35. R1c2 {[%emt 0:00:05]} 1-0

[Event "Gaprindashvili Cup Women III Stage 2020"]
[Site "Online"]
[Date "2020.11.12"]
[Round "1.6"]
[White "Khurtsilava, Inga"]
[Black "Tsatsalashvili, Keti"]
[Result "1/2-1/2"]
[ECO "D05"]
[WhiteElo "2260"]
[BlackElo "2331"]
[Annotator "broadcasts"]
[PlyCount "175"]
[EventDate "2020.11.04"]
[EventType "k.o."]
[TimeControl "1500+5"]

1. d4 {[%emt 0:00:00]} Nf6 {[%emt 0:00:08]} 2. Nf3 {[%emt 0:00:04]} e6 {[%emt 0:00:08]} 3. e3 {[%emt 0:00:04]} d5 {[%emt 0:00:08]} 4. Bd3 {[%emt 0:00:04]} c5 {[%emt 0:00:08]} 5. b3 {[%emt 0:00:02]} b6 {[%emt 0:00:09]} 6. O-O {[%emt 0:00:08]} Bb7 {[%emt 0:00:04]} 7. Bb2 {[%emt 0:00:03]} Be7 {[%emt 0:00:03]} 8. Nbd2 {[%emt 0:00:04]} O-O {[%emt 0:00:04]} 9. Ne5 {[%emt 0:00:19]} Nc6 {[%emt 0:00:21]} 10. a3 {[%emt 0:00:04]} Ne8 {[%emt 0:02:06]} 11. Qh5 {[%emt 0:02:10]} f5 {[%emt 0:00:07]} 12. Qe2 {[%emt 0:00:34]} Nxe5 {[%emt 0:01:20]} 13. dxe5 {[%emt 0:00:05]} g6 {[%emt 0:00:27]} 14. c4 {[%emt 0:00:08]} Ng7 {[%emt 0:00:06]} 15. f4 {[%emt 0:00:16]} Qd7 {[%emt 0:01:07]} 16. Nf3 {[%emt 0:00:09]} Rfd8 {[%emt 0:00:18]} 17. Rfd1 {[%emt 0:00:04]} Qe8 {[%emt 0:00:50]} 18. Rd2 {[%emt 0:00:50]} a5 {[%emt 0:03:07]} 19. Rad1 {[%emt 0:00:20]} a4 {[%emt 0:01:31]} 20. cxd5 {[%emt 0:00:19]} Bxd5 {[%emt 0:00:11]} 21. Bb5 {[%emt 0:00:15]} Bc6 {[%emt 0:00:05]} 22. bxa4 {[%emt 0:00:51]} Bxb5 {[%emt 0:04:04]} 23. axb5 {[%emt 0:00:14]} Rxd2 {[%emt 0:01:47]} 24. Nxd2 {[%emt 0:01:30]} Ra5 {[%emt 0:00:08]} 25. Nc4 {[%emt 0:00:39]} Qxb5 {[%emt 0:00:27]} 26. Qc2 {[%emt 0:00:20]} Ra8 {[%emt 0:00:14]} 27. Rd3 {[%emt 0:01:06]} Qc6 {[%emt 0:00:19]} 28. Qd2 {[%emt 0:02:14]} b5 {[%emt 0:00:22]} 29. Nd6 {[%emt 0:03:03]} h6 {[%emt 0:00:22]} 30. Qd1 {[%emt 0:01:50]} Rb8 {[%emt 0:00:47]} 31. Rd2 {[%emt 0:00:20]} Ra8 {[%emt 0:00:22]} 32. Qb3 {[%emt 0:00:47]} Rb8 {[%emt 0:00:04]} 33. a4 {[%emt 0:01:29]} b4 {[%emt 0:00:19]} 34. a5 {[%emt 0:00:27]} Rd8 {[%emt 0:00:16]} 35. Nc4 {[%emt 0:01:43]} Rxd2 {[%emt 0:00:11]} 36. Nxd2 {[%emt 0:00:02]} Bd8 {[%emt 0:00:10]} 37. Nc4 {[%emt 0:00:14]} Qb5 {[%emt 0:00:10]} 38. Kf2 {[%emt 0:01:43]} Bxa5 {[%emt 0:00:44]} 39. h3 {[%emt 0:00:28]} Bd8 {[%emt 0:00:24]} 40. Nd6 {[%emt 0:00:15]} Qc6 {[%emt 0:00:07]} 41. Qc4 {[%emt 0:00:13]} Qd5 {[%emt 0:00:34]} 42. Qb5 {[%emt 0:01:14]} Qd2+ {[%emt 0:00:47]} 43. Qe2 {[%emt 0:00:04]} Bh4+ {[%emt 0:00:34]} 44. Kf1 {[%emt 0:00:03]} Qd5 {[%emt 0:00:15]} 45. Qc2 {[%emt 0:00:19]} b3 {[%emt 0:00:51]} 46. Qe2 {[%emt 0:00:52]} Nh5 {[%emt 0:00:19]} 47. Kg1 {[%emt 0:00:15]} Ng3 {[%emt 0:00:17]} 48. Qf3 {[%emt 0:00:04]} Qxf3 {[%emt 0:01:00]} 49. gxf3 {[%emt 0:00:03]} Be7 {[%emt 0:00:09]} 50. Nc4 {[%emt 0:00:08]} Bd8 {[%emt 0:00:12]} 51. Kf2 {[%emt 0:00:05]} Nh5 {[%emt 0:00:06]} 52. Nd2 {[%emt 0:00:09]} Ba5 {[%emt 0:00:14]} 53. Nxb3 {[%emt 0:00:03]} Bb4 {[%emt 0:00:02]} 54. Bc1 {[%emt 0:00:08]} c4 {[%emt 0:00:04]} 55. Nd4 {[%emt 0:00:05]} Kf7 {[%emt 0:00:04]} 56. Nc2 {[%emt 0:00:12]} Bc5 {[%emt 0:00:03]} 57. Ba3 {[%emt 0:00:06]} Nxf4 {[%emt 0:00:07]} 58. Kf1 {[%emt 0:00:18]} Nd3 {[%emt 0:00:05]} 59. Bxc5 {[%emt 0:00:07]} Nxc5 {[%emt 0:00:03]} 60. Ke2 {[%emt 0:00:03]} g5 {[%emt 0:00:07]} 61. Na3 {[%emt 0:00:03]} c3 {[%emt 0:00:04]} 62. Nb5 {[%emt 0:00:04]} c2 {[%emt 0:00:10]} 63. Kd2 {[%emt 0:00:03]} Nd3 {[%emt 0:00:05]} 64. Kxc2 {[%emt 0:00:05]} Nxe5 {[%emt 0:00:03]} 65. Nd4 {[%emt 0:00:03]} h5 {[%emt 0:00:09]} 66. Kd2 {[%emt 0:00:04]} Kf6 {[%emt 0:00:07]} 67. Ke2 {[%emt 0:00:03]} g4 {[%emt 0:00:01]} 68. fxg4 {[%emt 0:00:05]} fxg4 {[%emt 0:00:04]} 69. hxg4 {[%emt 0:00:02]} Nxg4 {[%emt 0:00:02]} 70. Kf3 {[%emt 0:00:04]} Ne5+ {[%emt 0:00:03]} 71. Kg3 {[%emt 0:00:04]} Ng6 {[%emt 0:00:02]} 72. Kf3 {[%emt 0:00:03]} Ke5 {[%emt 0:00:02]} 73. Ne2 {[%emt 0:00:10]} h4 {[%emt 0:00:04]} 74. Ng1 {[%emt 0:00:03]} Kf5 {[%emt 0:00:02]} 75. Nh3 {[%emt 0:00:07]} Ne5+ {[%emt 0:00:03]} 76. Kf2 {[%emt 0:00:17]} Nc4 {[%emt 0:00:17]} 77. Kf3 {[%emt 0:00:05]} Nd2+ {[%emt 0:00:03]} 78. Kf2 {[%emt 0:00:11]} Kg4 {[%emt 0:00:06]} 79. Kg2 {[%emt 0:00:02]} Nc4 {[%emt 0:00:08]} 80. Nf2+ {[%emt 0:00:03]} Kf5 {[%emt 0:00:04]} 81. Kf3 {[%emt 0:00:02]} Ne5+ {[%emt 0:00:03]} 82. Kg2 {[%emt 0:00:03]} Ng4 {[%emt 0:00:03]} 83. e4+ {[%emt 0:00:04]} Kf4 {[%emt 0:00:04]} 84. Nd3+ {[%emt 0:00:09]} Kxe4 {[%emt 0:00:04]} 85. Nc5+ {[%emt 0:00:02]} Kf5 {[%emt 0:00:08]} 86. Nxe6 {[%emt 0:00:03]} Kxe6 {[%emt 0:00:17]} 87. Kh3 {[%emt 0:00:03]} Kf5 {[%emt 0:00:02]} 88. Kxh4 {[%emt 0:00:02]} 1/2-1/2